bitfinex-derivatives/quotes_SOLF0:USTF0_20250928
["timestamp","ask_amount","ask_price","bid_price","bid_amount"]
[1759031786159,4.4667,201.38,201.32,120.26]
[1759031786354,7.48,201.37,201.32,120.26]
[1759031786657,4.4667,201.38,201.32,120.26]
[1759031787254,11.9467,201.38,201.33,7.39]
[1759031787853,4.4667,201.38,201.32,120.26]
[1759031788049,11.9467,201.38,201.33,7.39]
[1759031788253,4.4667,201.38,201.32,120.26]
[1759031788560,11.9467,201.38,201.33,7.39]
[1759031788949,4.4667,201.38,201.32,120.26]
[1759031789154,7.48,201.37,201.32,120.26]
[1759031789555,7.48,201.37,201.33,7.39]
[1759031790260,7.48,201.37,201.32,120.26]
[1759031790455,7.48,201.37,201.33,7.39]
[1759031790760,7.48,201.37,201.32,120.26]
[1759031791255,7.48,201.37,201.33,7.39]
[1759031791560,7.48,201.37,201.32,120.26]
[1759031791860,7.48,201.37,201.33,7.39]
[1759031792155,69.4709,201.41,201.33,120.26]
[1759031792460,3.43836109,201.39,201.33,120.26]
[1759031792760,7.48,201.35,201.33,127.65]
[1759031793956,4.4672,201.36,201.33,120.26]
[1759031794163,4.4672,201.36,201.34,7.39]
[1759031794659,4.4672,201.36,201.33,120.26]
[1759031794862,4.4672,201.36,201.34,7.39]
[1759031795660,4.4672,201.36,201.33,120.26]
[1759031796061,4.4672,201.36,201.34,7.39]
[1759031796556,4.4672,201.36,201.33,120.26]
[1759031796952,4.4672,201.36,201.34,7.39]
[1759031797559,4.4672,201.36,201.33,120.26]
[1759031797760,4.4672,201.36,201.34,7.39]
[1759031797961,11.9472,201.36,201.34,7.39]
[1759031800265,11.9472,201.36,201.33,120.26]
[1759031800461,11.9472,201.36,201.34,7.39]
[1759031800662,4.4672,201.36,201.34,7.39]
[1759031800856,4.4672,201.36,201.33,120.26]
[1759031801361,4.4672,201.36,201.34,7.39]
[1759031802169,4.4672,201.36,201.33,120.26]
[1759031802366,4.4672,201.36,201.34,7.39]
[1759031803060,4.4672,201.36,201.33,120.26]
[1759031803665,4.4672,201.36,201.34,7.39]
[1759031803864,4.4672,201.36,201.33,120.26]
[1759031804066,4.4672,201.36,201.34,7.39]
[1759031804458,4.4672,201.36,201.3,4.4683]
[1759031804664,4.4672,201.36,201.31,70.62]
[1759031804865,4.4672,201.36,201.32,7.39]
[1759031805265,4.4672,201.36,201.31,7.39]
[1759031805465,4.4672,201.36,201.32,51.58]
[1759031805661,4.4666,201.38,201.33,7.39]
[1759031807174,98.68543884,201.43,201.33,7.39]
[1759031807365,98.68543884,201.43,201.33,9.28877951]
[1759031807573,98.68543884,201.43,201.34,7.39]
[1759031807975,4.4651,201.45,201.34,7.39]
[1759031809073,11.9451,201.45,201.34,7.39]
[1759031809274,7.48,201.49,201.4,7.39]
[1759031809477,7.48,201.49,201.42,7.39]
[1759031810572,11.9444,201.49,201.42,7.39]
[1759031814180,4.4646,201.48,201.42,7.39]
[1759031816381,4.4646,201.48,201.42,22.5908503]
[1759031816575,4.4646,201.48,201.42,7.39]
[1759031820685,4.4646,201.48,201.42,15.12943341]
[1759031820886,4.4646,201.48,201.43,7.94]
[1759031821085,12.3346,201.48,201.42,7.94]
[1759031822585,7.87,201.47,201.43,1.21364875]
[1759031822778,7.87,201.47,201.44,7.94]
[1759031823186,7.87,201.47,201.43,121.37364875]
[1759031823586,7.87,201.47,201.44,7.94]
[1759031823988,7.87,201.47,201.43,121.37364875]
[1759031824287,7.87,201.47,201.44,7.94]
[1759031824587,7.87,201.47,201.43,121.37364875]
[1759031825588,7.87,201.47,201.44,7.94]
[1759031825791,7.87,201.47,201.43,121.37364875]
[1759031825990,7.87,201.47,201.44,7.94]
[1759031826188,7.87,201.47,201.43,121.37364875]
[1759031826885,7.87,201.47,201.44,7.94]
[1759031827089,7.87,201.47,201.43,121.37364875]
[1759031827986,7.87,201.47,201.44,7.94]
[1759031828182,7.87,201.47,201.43,121.37364875]
[1759031828392,7.87,201.47,201.44,7.94]
[1759031828688,7.87,201.47,201.43,121.37364875]
[1759031828884,7.87,201.47,201.44,7.94]
[1759031829387,7.87,201.47,201.44,7.49]
[1759031829785,7.87,201.47,201.43,121.37364875]
[1759031829980,7.87,201.47,201.44,7.49]
[1759031830786,7.87,201.47,201.43,121.37364875]
[1759031830988,7.87,201.47,201.44,7.49]
[1759031831292,7.87,201.47,201.43,121.37364875]
[1759031831695,7.87,201.47,201.44,7.49]
[1759031832394,7.87,201.47,201.43,121.37364875]
[1759031832899,7.87,201.47,201.44,7.49]
[1759031833197,7.87,201.47,201.43,121.37364875]
[1759031833597,7.87,201.47,201.44,7.49]
[1759031834898,7.87,201.47,201.43,120.16]
[1759031835196,7.87,201.47,201.44,7.49]
[1759031835600,7.87,201.47,201.43,120.16]
[1759031835802,7.87,201.47,201.44,7.49]
[1759031835989,7.87,201.47,201.43,120.16]
[1759031836497,7.87,201.47,201.44,7.49]
[1759031836800,7.87,201.47,201.43,120.16]
[1759031837393,7.87,201.47,201.44,7.49]
[1759031837597,7.87,201.47,201.43,120.16]
[1759031837796,4.4646,201.48,201.43,120.16]
[1759031838001,12.4546,201.48,201.43,120.16]
[1759031838901,12.4546,201.48,201.44,7.49]
[1759031839104,12.4546,201.48,201.43,120.16]
[1759031839297,12.4546,201.48,201.44,7.49]
[1759031839505,12.4546,201.48,201.43,120.16]
[1759031839800,12.4546,201.48,201.44,7.49]
[1759031840001,12.4546,201.48,201.43,120.16]
[1759031840706,12.4546,201.48,201.44,7.49]
[1759031841703,12.4546,201.48,201.43,120.16]
[1759031842204,7.99,201.47,201.44,127.61]
[1759031842501,7.99,201.47,201.44,120.12]
[1759031842705,7.99,201.47,201.45,7.49]
[1759031846912,4.4648,201.47,201.42,14.71413314]
[1759031847111,7.58,201.46,201.43,127.72]
[1759031847710,7.58,201.46,201.44,7.62]
[1759031847901,4.4648,201.47,201.44,7.62]
[1759031848100,12.0448,201.47,201.44,7.62]
[1759031849411,12.0448,201.47,201.43,120.1]
[1759031849610,12.0448,201.47,201.44,7.62]
[1759031849810,12.0448,201.47,201.43,120.1]
[1759031850212,12.0448,201.47,201.44,7.62]
[1759031850508,12.0448,201.47,201.43,120.1]
[1759031850706,12.0448,201.47,201.44,7.62]
[1759031851703,12.0448,201.47,201.43,120.1]
[1759031852209,4.465,201.46,201.43,127.72]
[1759031852403,7.58,201.45,201.43,7.62]
[1759031852604,4.465,201.46,201.39,8.82907836]
[1759031852605,7.58,201.46,201.39,8.82907836]
[1759031852810,1.21364875,201.45,201.41,51.1]
[1759031853314,7.58,201.44,201.39,8.82907836]
[1759031853515,7.58,201.44,201.4,75.1]
[1759031853709,7.58,201.43,201.41,7.62]
[1759031857915,7.58,201.42,201.4,75.1]
[1759031858415,7.58,201.42,201.4,82.72]
[1759031859019,7.58,201.42,201.4,7.62]
[1759031859312,7.58,201.4,201.36,7.62]
[1759031859514,1.21364875,201.39,201.33,8.87449632]
[1759031859717,8.79364875,201.39,201.33,8.87449632]
[1759031860614,1.21364875,201.41,201.33,8.87449632]
[1759031860807,7.58,201.42,201.33,8.87449632]
[1759031860808,7.58,201.42,201.33,17.32884034]
[1759031861007,7.58,201.42,201.34,7.62]
[1759031861209,7.58,201.42,201.36,7.62]
[1759031862706,4.466,201.41,201.35,1.21364875]
[1759031862910,4.466,201.41,201.36,7.62]
[1759031863417,4.466,201.41,201.35,1.21364875]
[1759031864420,12.046,201.41,201.35,1.21364875]
[1759031865014,12.046,201.41,201.36,7.62]
[1759031865215,12.046,201.41,201.35,1.21364875]
[1759031865423,12.046,201.41,201.36,7.62]
[1759031865721,12.046,201.41,201.35,1.21364875]
[1759031865919,7.58,201.41,201.35,1.21364875]
[1759031866312,7.58,201.41,201.36,7.62]
[1759031867117,7.58,201.41,201.37,120.12]
[1759031867618,7.58,201.41,201.38,7.62]
[1759031867915,7.58,201.41,201.37,120.12]
[1759031868323,7.58,201.41,201.38,7.62]
[1759031869725,7.58,201.41,201.37,120.12]
[1759031870117,7.58,201.41,201.38,7.62]
[1759031870918,7.58,201.41,201.37,120.12]
[1759031871422,7.58,201.41,201.38,7.62]
[1759031871621,12.0456,201.43,201.37,120.12]
[1759031872019,12.0456,201.43,201.38,7.62]
[1759031872218,12.0456,201.43,201.37,120.12]
[1759031872523,12.0456,201.43,201.38,7.62]
[1759031873120,12.3556,201.43,201.38,7.95]
[1759031873317,4.4656,201.43,201.37,120.12]
[1759031873517,12.3556,201.43,201.38,7.95]
[1759031873715,4.4656,201.43,201.37,120.12]
[1759031873918,12.3552,201.45,201.38,7.95]
[1759031875219,12.3552,201.45,201.39,7.95]
[1759031890240,12.3552,201.45,201.4,7.53]
[1759031890843,12.3552,201.45,201.39,4.4663]
[1759031891045,12.3552,201.45,201.4,7.53]
[1759031891241,4.4652,201.45,201.4,7.53]
[1759031891442,4.4652,201.45,201.39,4.4663]
[1759031891645,12.0152,201.45,201.39,4.4663]
[1759031891946,4.4652,201.45,201.4,7.53]
[1759031892141,7.55,201.45,201.41,7.53]
[1759031892749,7.55,201.45,201.4,4.4661]
[1759031893849,7.55,201.45,201.41,7.53]
[1759031894044,7.55,201.45,201.4,4.4661]
[1759031894251,8.43777295,201.47,201.39,7.53]
[1759031895548,8.43777295,201.47,201.42,4.4656]
[1759031895751,7.55,201.46,201.42,4.4656]
[1759031896047,7.55,201.46,201.43,7.53]
[1759031898549,7.55,201.46,201.42,4.4656]
[1759031898751,7.55,201.46,201.43,7.53]
[1759031899151,7.55,201.46,201.42,4.4656]
[1759031899349,7.55,201.46,201.43,7.53]
[1759031899850,7.55,201.46,201.42,4.4656]
[1759031900045,7.55,201.46,201.43,7.53]
[1759031900252,7.55,201.46,201.42,4.4656]
[1759031900447,7.55,201.46,201.43,7.53]
[1759031900645,7.55,201.46,201.42,4.4656]
[1759031900844,7.55,201.46,201.43,7.53]
[1759031901041,7.55,201.46,201.42,4.4656]
[1759031901540,7.55,201.46,201.43,7.53]
[1759031902452,7.55,201.46,201.42,4.4656]
[1759031903548,7.55,201.46,201.43,7.82]
[1759031903850,7.55,201.46,201.42,4.4656]
[1759031904444,7.55,201.46,201.43,7.82]
[1759031905049,7.55,201.46,201.42,4.4656]
[1759031906057,7.55,201.46,201.43,7.82]
[1759031906954,7.55,201.46,201.42,4.4656]
[1759031907153,7.55,201.46,201.44,7.82]
[1759031908150,7.55,201.46,201.43,4.4653]
[1759031908554,7.55,201.46,201.44,7.82]
[1759031908754,7.55,201.46,201.43,4.4653]
[1759031908953,7.55,201.46,201.44,7.82]
[1759031910057,7.55,201.46,201.44,12.2852]
[1759031911161,7.55,201.46,201.44,4.4652]
[1759031911361,8.34777295,201.47,201.45,7.82]
[1759031912764,7.46,201.47,201.45,7.82]
[1759031913365,7.46,201.47,201.45,12.285]
[1759031916356,7.46,201.47,201.46,7.82]
[1759031920466,7.46,201.52,201.46,7.82]
[1759031922266,11.9237,201.52,201.46,7.82]
[1759031925070,4.4637,201.52,201.46,12.2847]
[1759031925266,7.46,201.51,201.46,12.2847]
[1759031925567,4.4637,201.52,201.46,12.2847]
[1759031926560,7.46,201.51,201.46,12.2847]
[1759031927267,4.4637,201.52,201.46,12.2847]
[1759031927467,7.46,201.51,201.47,4.4645]
[1759031927764,7.46,201.52,201.47,12.2845]
[1759031927964,101.56143451,201.53,201.47,12.2845]
[1759031928567,106.02483451,201.53,201.47,12.2845]
[1759031930367,7.46,201.52,201.47,12.2845]
[1759031930572,106.02483451,201.53,201.47,12.2845]
[1759031930773,7.46,201.52,201.47,12.2845]
[1759031931072,11.9237,201.52,201.47,7.82]
[1759031932465,4.4637,201.52,201.47,7.82]
[1759031932665,4.4637,201.52,201.45,4.465]
[1759031932866,7.46,201.51,201.46,7.82]
[1759031933072,11.9237,201.52,201.46,7.82]
[1759031938981,4.4639,201.51,201.46,7.82]
[1759031939174,7.4,201.52,201.46,7.82]
[1759031939378,3.44306126,201.51,201.46,7.82]
[1759031939573,7.4,201.52,201.46,7.82]
[1759031939778,3.44324225,201.51,201.46,7.82]
[1759031939977,7.4,201.52,201.46,7.82]
[1759031940175,7.4,201.47,201.41,8.08]
[1759031940382,1.89729248,201.49,201.38,46.3]
[1759031940681,10.84277333,201.48,201.39,8.08]
[1759031940870,7.4,201.46,201.39,8.08]
[1759031941279,4.4652,201.45,201.39,8.08]
[1759031941475,7.4,201.44,201.38,8.08]
[1759031946182,11.8655,201.44,201.38,8.08]
[1759031948078,7.4,201.44,201.38,8.08]
[1759031948283,7.4,201.44,201.39,8.08]
[1759031948583,7.4,201.45,201.39,9.29447783]
[1759031951079,11.8653,201.45,201.39,8.08]
[1759031951279,4.4653,201.45,201.39,9.29447783]
[1759031951483,4.4653,201.45,201.39,1.21447783]
[1759031951684,7.85,201.44,201.39,8.71447783]
[1759031952086,4.4653,201.45,201.39,1.21447783]
[1759031952583,7.85,201.44,201.39,8.71447783]
[1759031952779,7.85,201.44,201.39,1.21447783]
[1759031952984,4.4653,201.45,201.4,7.5]
[1759031953184,7.85,201.44,201.4,7.5]
[1759031953388,4.4653,201.45,201.4,7.5]
[1759031953586,7.85,201.44,201.4,7.5]
[1759031953882,4.4655,201.44,201.4,7.5]
[1759031954186,1.21447783,201.47,201.37,8.71447783]
[1759031954187,7.85,201.46,201.37,8.71447783]
[1759031955486,8.71380148,201.46,201.37,8.71447783]
[1759031955685,12.3157,201.43,201.37,8.71447783]
[1759031960982,12.3157,201.43,201.37,7.5]
[1759031961286,7.85,201.41,201.37,8.71447783]
[1759031961487,4.4659,201.42,201.37,8.71447783]
[1759031961784,4.4659,201.42,201.38,7.5]
[1759031961976,7.85,201.41,201.38,7.5]
[1759031962177,71.56399824,201.46,201.35,1.21447783]
[1759031962178,7.85,201.43,201.35,1.21447783]
[1759031962486,7.85,201.41,201.34,8.71069855]
[1759031963581,4.4664,201.4,201.34,8.71069855]
[1759031964590,4.4664,201.4,201.34,1.21069855]
[1759031964885,7.85,201.39,201.34,1.21069855]
[1759031965089,7.85,201.39,201.34,8.90069855]
[1759031965389,4.4664,201.4,201.34,1.21069855]
[1759031966089,7.85,201.39,201.34,8.90069855]
[1759031966288,4.4664,201.4,201.34,1.21447783]
[1759031966688,4.4664,201.4,201.35,7.69]
[1759031966885,7.85,201.39,201.34,1.21447783]
[1759031967082,4.4664,201.4,201.35,7.69]
[1759031967281,4.4664,201.4,201.34,1.21447783]
[1759031967681,7.85,201.39,201.34,8.90447783]
[1759031968084,7.85,201.39,201.34,1.21447783]
[1759031968282,4.4664,201.4,201.34,1.21447783]
[1759031969790,7.85,201.39,201.34,1.21447783]
[1759031969997,4.4664,201.4,201.34,1.21447783]
[1759031970994,7.85,201.39,201.33,14.86069527]
[1759031971193,7.85,201.39,201.34,8.90447783]
[1759031971489,4.4664,201.4,201.34,1.21447783]
[1759031971695,4.4664,201.4,201.35,7.69]
[1759031971889,7.85,201.39,201.35,7.69]
[1759031972486,4.4664,201.4,201.34,1.21447783]
[1759031972796,7.85,201.39,201.34,1.21447783]
[1759031973093,4.4664,201.4,201.35,7.69]
[1759031973290,4.4658,201.42,201.38,1.21447783]
[1759031973490,7.85,201.41,201.39,7.69]
[1759031976093,7.85,201.41,201.38,1.21447783]
[1759031976299,12.3158,201.42,201.38,1.21447783]
[1759031976495,12.3158,201.42,201.39,7.69]
[1759031979397,12.3158,201.42,201.37,7.69]
[1759031979797,12.3158,201.42,201.36,7.69]
[1759031979997,12.3158,201.42,201.35,4.4673]
[1759031979998,12.3158,201.42,201.38,7.69]
[1759031980300,12.3158,201.42,201.37,1.21447783]
[1759031980691,4.4658,201.42,201.38,7.69]
[1759031980898,12.3158,201.42,201.38,7.69]
[1759031981200,12.3158,201.42,201.37,1.21447783]
[1759031981592,12.3158,201.42,201.38,7.69]
[1759031981900,12.3158,201.42,201.37,1.21447783]
[1759031982103,12.3158,201.42,201.38,7.69]
[1759031982298,7.85,201.41,201.38,7.69]
[1759031982703,7.85,201.41,201.37,1.21447783]
[1759031982902,7.85,201.41,201.38,7.69]
[1759031983098,7.85,201.41,201.37,1.21447783]
[1759031983504,7.85,201.41,201.38,7.69]
[1759031984103,5.32729316,201.44,201.38,7.69]
[1759031984292,5.32729316,201.44,201.38,8.90447783]
[1759031986198,13.17729316,201.44,201.38,8.90447783]
[1759031986705,4.4656,201.43,201.38,8.90447783]
[1759031986899,7.85,201.42,201.39,7.69]
[1759031987401,4.4656,201.43,201.39,7.69]
[1759031987600,7.85,201.41,201.36,1.21447783]
[1759031987802,4.4659,201.42,201.37,7.69]
[1759031988010,7.85,201.41,201.36,1.21447783]
[1759031988200,7.85,201.41,201.37,7.69]
[1759031988404,7.85,201.41,201.36,1.21447783]
[1759031988709,7.85,201.41,201.36,7.69]
[1759031989804,7.85,201.41,201.35,5.68167783]
[1759031990004,7.85,201.41,201.36,7.69]
[1759031990199,7.85,201.41,201.35,125.68167783]
[1759031990810,7.85,201.41,201.36,7.69]
[1759031991008,4.4659,201.42,201.35,124.4672]
[1759031991205,7.85,201.41,201.36,1.21447783]
[1759031991906,7.85,201.41,201.37,7.69]
[1759031992110,7.85,201.41,201.36,1.21447783]
[1759031992408,7.85,201.41,201.37,7.69]
[1759031992710,7.85,201.41,201.36,1.21447783]
[1759031992902,7.85,201.41,201.37,7.69]
[1759031993098,7.85,201.41,201.36,125.68147783]
[1759031993298,7.85,201.41,201.37,7.87]
[1759031993504,7.85,201.41,201.36,125.68147783]
[1759031994002,7.85,201.41,201.37,7.87]
[1759031994204,7.85,201.41,201.36,125.68147783]
[1759031994605,4.4653,201.44,201.37,4.4667]
[1759031995105,7.59,201.43,201.37,4.4667]
[1759031995306,7.59,201.43,201.38,7.87]
[1759031995506,4.4653,201.44,201.37,4.4667]
[1759031995708,7.59,201.43,201.37,12.3367]
[1759031996403,4.4653,201.44,201.37,4.4667]
[1759031996803,7.59,201.43,201.38,7.87]
[1759031997004,4.4653,201.44,201.37,4.4667]
[1759031997210,7.59,201.43,201.37,12.3367]
[1759031998717,7.59,201.43,201.37,4.4667]
[1759031998920,7.59,201.43,201.38,7.87]
[1759031999220,7.59,201.43,201.39,7.87]
[1759031999415,7.59,201.43,201.38,4.4665]
[1759031999720,7.59,201.43,201.39,7.87]
[1759031999916,4.4653,201.44,201.39,7.87]
[1759032000115,4.4653,201.44,201.38,4.4665]
[1759032000323,4.4653,201.44,201.39,7.87]
[1759032000522,7.59,201.43,201.39,7.87]
[1759032000724,4.4653,201.44,201.39,7.87]
[1759032000919,7.59,201.43,201.39,7.87]
[1759032001124,4.4653,201.44,201.39,7.87]
[1759032001416,7.59,201.43,201.39,7.87]
[1759032001621,7.59,201.43,201.38,4.4665]
[1759032001822,4.4653,201.44,201.39,7.87]
[1759032002022,7.59,201.43,201.38,4.4665]
[1759032002420,12.0553,201.44,201.38,4.4665]
[1759032002721,4.4653,201.44,201.38,4.4665]
[1759032003120,7.59,201.43,201.38,4.4665]
[1759032003421,4.4653,201.44,201.39,7.87]
[1759032003620,7.59,201.43,201.38,4.4665]
[1759032003820,12.0549,201.46,201.4,7.87]
[1759032004222,7.59,201.46,201.4,7.87]
[1759032004623,7.59,201.44,201.4,7.87]
[1759032004823,70.66177783,201.48,201.4,7.87]
[1759032005026,11.033118,201.47,201.4,7.87]
[1759032005327,7.59,201.45,201.39,7.87]
[1759032005717,7.59,201.47,201.39,7.87]
[1759032005921,7.59,201.45,201.39,7.87]
[1759032006621,7.59,201.42,201.39,7.87]
[1759032006826,12.0557,201.43,201.38,7.87]
[1759032007022,4.4657,201.43,201.37,116.7468]
[1759032007228,7.59,201.42,201.37,116.7468]
[1759032007427,7.59,201.42,201.38,7.87]
[1759032007628,7.59,201.42,201.37,116.7468]
[1759032007829,12.056,201.42,201.36,7.87]
[1759032008024,7.59,201.41,201.37,119.98]
[1759032008224,7.59,201.41,201.38,7.87]
[1759032008428,4.466,201.42,201.37,119.98]
[1759032008628,4.466,201.42,201.38,7.87]
[1759032008824,12.056,201.42,201.37,119.98]
[1759032009228,12.056,201.42,201.38,7.87]
[1759032009626,12.0561,201.41,201.38,7.87]
[1759032009824,7.44,201.42,201.33,23.08056704]
[1759032010030,71.36225691,201.43,201.33,89.52]
[1759032010233,71.37255691,201.4,201.29,8.32075165]
[1759032010532,7.44,201.38,201.29,19.4]
[1759032010731,7.44,201.39,201.3,8.1]
[1759032011127,7.44,201.39,201.3,9.99745691]
[1759032011334,71.35275691,201.46,201.31,16.42075165]
[1759032011632,10.88212528,201.45,201.32,8.1]
[1759032011831,7.44,201.43,201.32,8.1]
[1759032012034,3.44212528,201.42,201.32,8.1]
[1759032012334,7.44,201.41,201.32,8.1]
[1759032012733,11.9062,201.41,201.34,8.1]
[1759032016232,7.44,201.41,201.34,8.1]
[1759032016531,7.44,201.42,201.31,55.8282]
[1759032016729,10.88114173,201.41,201.31,55.8282]
[1759032016926,11.9068,201.38,201.31,12.5682]
[1759032017122,7.44,201.37,201.31,12.5682]
[1759032018434,7.44,201.4,201.31,8.1]
[1759032018634,7.44,201.4,201.32,8.1]
[1759032019738,7.44,201.4,201.34,12.5675]
[1759032020036,7.44,201.4,201.35,8.1]
[1759032020236,4.4658,201.42,201.34,4.4675]
[1759032020437,7.44,201.41,201.35,8.1]
[1759032024937,7.44,201.41,201.36,7.39]
[1759032025637,7.44,201.41,201.35,4.4671]
[1759032025840,7.44,201.41,201.36,7.39]
[1759032026340,4.4658,201.42,201.35,4.4671]
[1759032026533,7.89,201.41,201.36,7.39]
[1759032027239,4.4658,201.42,201.35,4.4671]
[1759032027439,7.89,201.41,201.36,7.39]
[1759032027638,4.4658,201.42,201.35,4.4671]
[1759032027841,7.89,201.41,201.36,7.39]
[1759032028141,4.4658,201.42,201.35,4.4671]
[1759032028342,7.89,201.41,201.36,7.39]
[1759032028841,4.4658,201.42,201.36,7.39]
[1759032030642,12.3558,201.42,201.36,7.39]
[1759032032543,7.89,201.4,201.33,11.8577]
[1759032033149,7.89,201.4,201.33,4.4677]
[1759032033446,7.89,201.4,201.34,7.39]
[1759032035539,4.4666,201.39,201.34,7.39]
[1759032036046,7.89,201.38,201.32,8.32075165]
[1759032036548,4.4666,201.39,201.32,8.32075165]
[1759032036848,12.3566,201.39,201.33,7.39]
[1759032040048,4.4668,201.38,201.33,7.39]
[1759032040251,7.89,201.37,201.33,7.39]
[1759032040850,4.4668,201.38,201.33,7.39]
[1759032041249,7.89,201.37,201.33,7.39]
[1759032041443,4.4668,201.38,201.33,7.39]
[1759032041751,7.89,201.37,201.33,7.39]
[1759032041948,4.4668,201.38,201.33,7.39]
[1759032042149,7.89,201.37,201.33,7.39]
[1759032042352,4.4668,201.38,201.33,7.39]
[1759032042849,7.89,201.37,201.33,7.39]
[1759032043054,4.4668,201.38,201.33,7.39]
[1759032043642,7.89,201.37,201.33,7.39]
[1759032043947,4.4668,201.38,201.33,7.39]
[1759032044246,7.89,201.37,201.33,7.39]
[1759032044456,7.89,201.37,201.32,7.39]
[1759032045251,4.4668,201.38,201.31,5.69209336]
[1759032045455,12.3568,201.38,201.32,7.39]
[1759032054753,4.467,201.37,201.31,1.22399336]
[1759032054948,7.62,201.36,201.31,1.22399336]
[1759032055148,4.467,201.37,201.31,1.22399336]
[1759032055348,12.087,201.37,201.32,7.74]
[1759032055542,7.62,201.36,201.31,1.22399336]
[1759032056146,4.467,201.37,201.32,7.74]
[1759032056848,12.087,201.37,201.32,7.74]
[1759032057054,4.467,201.37,201.32,7.74]
[1759032057246,7.62,201.36,201.32,7.74]
[1759032057852,4.467,201.37,201.32,7.74]
[1759032058248,7.62,201.36,201.31,1.22399336]
[1759032059548,4.4677,201.34,201.31,1.22399336]
[1759032059743,7.62,201.33,201.31,1.22399336]
[1759032059942,77.1031,201.38,201.31,1.22399336]
[1759032061750,7.62,201.32,201.31,1.22399336]
[1759032062854,12.0882,201.32,201.26,7.74]
[1759032064153,12.0882,201.32,201.26,22.45988859]
[1759032065556,12.0876,201.34,201.26,12.2092]
[1759032065858,69.4785,201.39,201.26,7.74]
[1759032065859,7.62,201.39,201.26,7.74]
[1759032067162,12.0875,201.35,201.29,7.74]
[1759032067353,12.0875,201.35,201.29,127.76]
[1759032068960,12.0875,201.35,201.29,120.02]
[1759032069164,7.62,201.34,201.29,120.02]
[1759032069363,7.62,201.34,201.3,7.74]
[1759032069559,7.62,201.34,201.29,120.02]
[1759032070055,7.62,201.34,201.3,7.85]
[1759032070254,7.62,201.34,201.29,120.02]
[1759032070854,7.62,201.34,201.3,7.85]
[1759032071055,7.62,201.34,201.29,120.02]
[1759032071255,7.62,201.34,201.3,7.85]
[1759032071857,7.62,201.34,201.29,120.02]
[1759032072463,7.62,201.34,201.3,7.85]
[1759032072658,7.62,201.34,201.29,120.02]
[1759032072962,7.62,201.34,201.3,7.85]
[1759032073165,7.62,201.34,201.29,120.02]
[1759032073359,12.4177,201.34,201.27,7.85]
[1759032073665,12.4177,201.34,201.28,120.02]
[1759032074363,7.95,201.33,201.28,120.02]